[Event "Turkish-ch Youth U18 Boys 2024"]
[Site "Belek Antalya"]
[Date "2024.01.22"]
[Round "3"]
[White "Engin, Onur Cinar"]
[Black "Yildiz, Ali Arda"]
[Result "1-0"]
[ECO "C50"]
[WhiteElo "2061"]
[BlackElo "1148"]
[Annotator "TA"]
[PlyCount "97"]
[EventDate "2024.01.21"]
[EventType "swiss"]
[EventCountry "TUR"]
[SourceTitle "playchess.com"]
[Source "ChessBase"]
[SourceQuality "1"]
[TimeControl "5400+30"]

{[%evp 17,97,7,33,30,30,35,42,35,44,29,35,35,30,28,35,0,0,0,0,0,2,5,39,10,18,29,28,18,20,9,42,0,49,49,35,35,131,140,165,194,175,75,245,260,274,253,353,337,701,704,677,694,653,554,734,733,798,769,899,864,954,956,1096,1064,29980,29979,29983,29983,29986,29987,29990,29991,29991,29992,29992,29992,29993,29993,29995,29996,29998,29999]} 1. e4 {[%emt 0:01:00]} e5 {[%emt 0:01:00]} 2. Nf3 {[%emt 0:00:00]} Nc6 {[%emt 0:01:30]} 3. Bc4 {[%emt 0:00:00]} Be7 {[%emt 0:00:30]} 4. d4 {[%emt 0:04:30]} exd4 {[%emt 0:00:30]} 5. Nxd4 {[%emt 0:01:30]} d6 {[%emt 0:00:30]} 6. O-O {[%emt 0:06:30]} Nf6 {[%emt 0:02:30]} 7. Nc3 {[%emt 0:03:30]} O-O {[%emt 0:00:30]} 8. Nxc6 {[%emt 0:00:30]} bxc6 {[%emt 0:00:30]} 9. h3 {[%emt 0:05:30]} Be6 {[%emt 0:04:30]} 10. Bxe6 {[%emt 0:09:30]} fxe6 {[%emt 0:00:30]} 11. Qe2 {[%emt 0:01:30]} Qd7 {[%emt 0:09:30]} 12. e5 {[%emt 0:03:30] White is slightly better.} Nd5 {[%emt 0:02:30]} 13. Ne4 {[%emt 0:09:30]} Nf4 {[%emt 0:12:30]} 14. Bxf4 {[%emt 0:00:30]} Rxf4 {[%emt 0:00:30]} 15. Rad1 {[%emt 0:03:30] Threatening Nc5.} d5 {[%emt 0:00:30]} 16. Nd2 {[%emt 0:00:30]} c5 {[%emt 0:08:30]} 17. g3 {[%emt 0:07:30]} Rf5 {[%emt 0:02:30]} 18. h4 {[%emt 0:02:30]} Raf8 $1 {[%emt 0:07:30]} 19. f4 {[%emt 0:04:30]} Qa4 {[%emt 0:12:30]} 20. Nf3 {[%emt 0:04:30]} Rb8 {[%emt 0:11:30]} 21. b3 {[%emt 0:01:30]} Qc6 {[%emt 0:00:30]} 22. c4 {[%emt 0:00:30] Threatens to win with cxd5.} d4 {[%emt 0:00:34]} 23. Nd2 $36 {[%emt 0:03:30][%mdl 2048] White has some pressure.} Rbf8 {[%emt 0:02:01]} 24. Qe4 {[%emt 0:02:30]} Qe8 {[%emt 0:02:41]} (24... Qxe4 $11 {might be stronger.} 25. Nxe4 a5) 25. Rf2 $14 {[%emt 0:06:30]} Qg6 {[%emt 0:06:23]} 26. Rg2 {[%emt 0:02:13]} Qg4 {[%emt 0:02:01]} ({Black should play} 26... Qe8 $14) 27. Rf1 $16 {[%emt 0:01:45]} Bxh4 {[%emt 0:01:05]} 28. gxh4 {[%emt 0:02:14]} Qxh4 {[%emt 0:00:11][%cal Rf5f4] [#]} 29. Qe1 {[%emt 0:02:03]} (29. Qc6 $1 $18 {[%cal Rc6e6] has better winning chances.} Rxf4 30. Qxe6+ (30. Qxc7 g6 $11) 30... R8f7 31. Nf3) 29... Qxe1 $2 {[%emt 0:02:23] This move loses the game for Black.} (29... Rxf4 $16 30. Qxh4 Rxh4) 30. Rxe1 $18 {[%emt 0:00:30]} Rxf4 {[%emt 0:00:00]} 31. Ne4 {[%emt 0:00:00]} Rd8 {[%emt 0:02:14]} 32. Nxc5 {[%emt 0:00:42]} Kf7 {[%emt 0:00:08] [#]} (32... Re8 33. Re4 Rxe4 34. Nxe4 Rf8) 33. Rxg7+ $3 {[%emt 0:00:12][%mdl 512]} Kxg7 {[%emt 0:00:49]} 34. Nxe6+ {[%emt 0:00:03]} Kf7 {[%emt 0:00:59] ( -> ...Rg8+)} 35. Nxd8+ {[%emt 0:00:43][%mdl 4096] Endgame. KRN-KR} Ke8 {[%emt 0:00:30]} 36. Ne6 {[%emt 0:00:30][%csl LRc7,LRf4]} Rg4+ {[%emt 0:00:30]} 37. Kf2 {[%emt 0:00:30]} Kd7 {[%emt 0:00:30]} 38. Nc5+ {[%emt 0:00:30]} Ke7 {[%emt 0:00:30]} 39. Rh1 {[%emt 0:01:00]} Rf4+ {[%emt 0:01:29]} 40. Ke2 {[%emt 0:00:09]} Rg4 {[%emt 0:01:06]} 41. Rxh7+ {[%emt 0:00:30] White mates.} Kd8 {[%emt 0:00:00]} 42. Kd3 {[%emt 0:00:03]} Rg2 {[%emt 0:01:06]} 43. e6 {[%emt 0:00:43][%cal Be5e6,Be6e7][%mdl 32]} a5 {[%emt 0:00:30][%cal Ba7a5,Ba5a4][%mdl 32]} 44. e7+ {[%emt 0:00:30]} Ke8 {[%emt 0:00:30]} 45. Ne6 {[%emt 0:00:30]} Rg3+ {[%emt 0:00:30]} 46. Kxd4 {[%emt 0:00:30]} c5+ {[%emt 0:00:30]} 47. Kxc5 {[%emt 0:00:30]} Rg5+ {[%emt 0:00:30]} 48. Nxg5 {[%emt 0:00:30]} a4 {[%emt 0:00:30]} 49. Kd6 {[%emt 0:00:30] Weighted Error Value: White=0.16 (very precise) /Black=0.59.  Loses game:     	---       	Black=1      Mistake:       	White=1     	Black=3      Inaccurate:     	White=3     	Black=3      OK:         	White=11    	Black=7      Best:        	White=2     	Black=2      Strong:       	---       	Black=1      Brilliant:      	White=1     	---} 1-0

[Event "Turkish-ch Youth U18 Boys 2024"]
[Site "Belek Antalya"]
[Date "2024.01.22"]
[Round "3"]
[White "Kilic, Nurullah"]
[Black "Giray, Arda"]
[Result "1/2-1/2"]
[ECO "C54"]
[WhiteElo "1751"]
[BlackElo "1323"]
[Annotator "NA RC COMBH"]
[PlyCount "70"]
[EventDate "2024.01.21"]
[EventType "swiss"]
[EventCountry "TUR"]
[SourceTitle "playchess.com"]
[Source "ChessBase"]
[SourceQuality "1"]
[TimeControl "5400+30"]

1. e4 {[%emt 0:01:00]} e5 {[%emt 0:01:00]} 2. Nf3 {[%emt 0:01:30]} Nc6 {[%emt 0:00:30]} 3. Bc4 {[%emt 0:00:30]} Bc5 {[%emt 0:00:00]} 4. c3 {[%emt 0:01:30]} Nf6 {[%emt 0:00:00]} 5. d3 {[%emt 0:00:30]} O-O {[%emt 0:00:30]} 6. Nbd2 {[%emt 0:01:30]} d6 {[%emt 0:00:30]} 7. h3 {[%emt 0:01:30]} Be6 {[%emt 0:04:30]} 8. Bb3 {[%emt 0:00:30]} h6 {[%emt 0:01:30]} 9. Nf1 {[%emt 0:01:30]} Bb6 {[%emt 0:04:30]} 10. Ng3 {[%emt 0:00:30]} Nd7 {[%emt 0:01:30]} 11. O-O {[%emt 0:09:30]} Nc5 {[%emt 0:16:30]} 12. Bc2 {[%emt 0:04:30]} d5 {[%emt 0:04:30]} 13. b4 {[%emt 0:18:30]} Nd7 {[%emt 0:02:30]} 14. a4 {[%emt 0:13:30]} a6 {[%emt 0:17:30]} 15. Ba3 {[%emt 0:02:30]} dxe4 {[%emt 0:05:30]} 16. dxe4 {[%emt 0:03:30]} Re8 {[%emt 0:01:30]} 17. Qe2 {[%emt 0:00:00]} Qf6 {[%emt 0:06:30]} 18. Rad1 {[%emt 0:01:00]} Rad8 {[%emt 0:00:30]} 19. Nf5 {[%emt 0:06:30]} Ne7 {[%emt 0:10:48]} 20. N3h4 {[%emt 0:08:30]} Ng6 {[%emt 0:05:22]} 21. Nxg6 {[%emt 0:01:30]} fxg6 {[%emt 0:01:51]} 22. Ne3 {[%emt 0:00:30]} Qg5 {[%emt 0:00:39]} 23. Kh2 {[%emt 0:00:30]} Nf6 {[%emt 0:00:38]} 24. Bc1 {[%emt 0:01:30]} Rxd1 {[%emt 0:01:40]} 25. Rxd1 {[%emt 0:00:30]} Qh4 {[%emt 0:00:05]} 26. f3 {[%emt 0:10:14]} Nh5 {[%emt 0:01:41]} 27. Nf1 {[%emt 0:01:49]} Rf8 {[%emt 0:02:18]} 28. Bd3 {[%emt 0:00:46]} Nf4 {[%emt 0:01:05]} 29. Bxf4 {[%emt 0:00:11]} Qxf4+ {[%emt 0:00:55]} 30. Kh1 {[%emt 0:00:07]} Kh7 {[%emt 0:00:26]} 31. Bc4 {[%emt 0:00:08]} Bc8 {[%emt 0:00:04]} 32. Qd2 {[%emt 0:01:28]} Qh4 {[%emt 0:00:49]} 33. Nh2 {[%emt 0:02:08]} Qg3 {[%emt 0:00:30]} 34. Nf1 {[%emt 0:00:30]} Qh4 {[%emt 0:00:30]} 35. Nh2 {[%emt 0:00:30]} Qg3 {[%emt 0:01:42]} 1/2-1/2

[Event "Turkish-ch Youth U18 Boys 2024"]
[Site "Belek Antalya"]
[Date "2024.01.22"]
[Round "3"]
[White "Aksu, Ata Anil"]
[Black "Erdogan, Tekin Alp"]
[Result "1/2-1/2"]
[ECO "B23"]
[WhiteElo "1728"]
[BlackElo "1992"]
[Annotator "TA"]
[PlyCount "62"]
[EventDate "2024.01.21"]
[EventType "swiss"]
[EventCountry "TUR"]
[SourceTitle "playchess.com"]
[Source "ChessBase"]
[SourceQuality "1"]
[TimeControl "5400+30"]

{[%evp 11,62,-10,-1,-15,0,-6,-1,-28,-34,-39,-43,-47,-36,-39,-31,-49,-29,-39,-33,-34,-37,-127,-120,-126,-112,-115,-120,-121,-46,-41,-8,-8,0,0,10,-71,0,0,182,110,126,125,102,47,65,32,55,0,81,55,142,143,112]} 1. e4 {[%emt 0:01:00]} c5 {[%emt 0:01:00]} 2. Nc3 {[%emt 0:00:00]} Nc6 {[%emt 0:00:30]} 3. f4 {[%emt 0:00:00]} g6 {[%emt 0:00:30]} 4. Nf3 {[%emt 0:00:30]} Bg7 {[%emt 0:00:00]} 5. Bb5 {[%emt 0:00:00]} Nd4 {[%emt 0:00:00]} 6. O-O {[%emt 0:00:00]} a6 {[%emt 0:00:00]} 7. Be2 {[%emt 0:01:30]} b5 {[%emt 0:00:00]} 8. d3 {[%emt 0:02:30]} d6 {[%emt 0:03:30]} 9. Nd5 {[%emt 0:01:30] The position is equal.} e6 {[%emt 0:02:30]} 10. Ne3 {[%emt 0:01:30]} Ne7 {[%emt 0:00:30]} 11. c3 {[%emt 0:00:30]} Nxe2+ {[%emt 0:00:30]} 12. Qxe2 {[%emt 0:00:30]} O-O {[%emt 0:01:30]} 13. Bd2 {[%emt 0:02:30]} a5 {[%emt 0:02:30]} 14. Rae1 {[%emt 0:04:30]} b4 {[%emt 0:02:30]} 15. e5 {[%emt 0:01:30]} Ba6 {[%emt 0:02:30]} 16. c4 {[%emt 0:04:30]} ({Better is} 16. Nc4 $15) 16... Bb7 $17 {[%emt 0:02:30]} 17. Ng4 {[%emt 0:01:30][%cal Be3g4,Bg4f2,Bf2e4][%mdl 32]} Nf5 {[%emt 0:01:30]} 18. Bc1 {[%emt 0:08:30]} h5 {[%emt 0:06:30]} 19. Nf2 {[%emt 0:02:30] [#]} dxe5 {[%emt 0:01:30]} (19... Bxf3 $1 $17 20. Qxf3 a4) 20. fxe5 $15 {[%emt 0:00:30]} Qc7 {[%emt 0:06:30] And now ...Bxf3 would win.} 21. Ne4 {[%emt 0:04:30]} Bxe5 {[%emt 0:06:30]} 22. Nxe5 {[%emt 0:00:30]} Qxe5 {[%emt 0:00:30]} 23. Kh1 {[%emt 0:02:30]} (23. Qf2 $1 $11) 23... Qd4 {[%emt 0:16:30]} (23... Nd4 $17 24. Qf2 Bxe4 25. dxe4 Qg7) 24. b3 $11 {[%emt 0:02:30] Strongly threatening Bb2.} Bxe4 $2 {[%emt 0:02:30]} (24... Rfd8 $1 $11) 25. dxe4 $18 {[%emt 0:00:30]} Ne7 {[%emt 0:04:30]} 26. Rd1 {[%emt 0:02:30][%mdl 1024] White has strong compensation.} Qg7 {[%emt 0:02:30]} 27. Qf2 {[%emt 0:10:30]} ({White should try} 27. Rd7 $16 Nc6 28. Bg5) 27... Rac8 $1 $14 {[%emt 0:03:30]} 28. Bb2 {[%emt 0:01:30]} e5 {[%emt 0:01:30]} 29. Rd7 {[%emt 0:05:30]} (29. Kg1 $14) 29... f6 {[%emt 0:03:30]} (29... f5 $1 $11 {keeps the balance.} 30. Qd2 fxe4) 30. Rfd1 {[%emt 0:01:30]} Kh7 {[%emt 0:01:30] [#]} (30... Rf7 $14) 31. h3 $1 $16 {[%emt 0:02:30] White is much more active.} Rf7 {[%emt 0:06:30] Weighted Error Value: White=0.23 (precise) /Black=0.31.  Loses game:     	---       	Black=1      Mistake:       	White=4     	Black=4      Inaccurate:     	White=4     	Black=1      OK:         	White=6     	Black=12     Best:        	White=1     	Black=1      Strong:       	---       	Black=1} 1/2-1/2

[Event "Turkish-ch Youth U18 Boys 2024"]
[Site "Belek Antalya"]
[Date "2024.01.22"]
[Round "3"]
[White "Ozcan, Alp Orcun"]
[Black "Ozen, Metehan"]
[Result "1/2-1/2"]
[ECO "C89"]
[WhiteElo "1657"]
[BlackElo "2252"]
[Annotator "RC"]
[PlyCount "103"]
[EventDate "2024.01.21"]
[EventType "swiss"]
[EventCountry "TUR"]
[SourceTitle "playchess.com"]
[Source "ChessBase"]
[SourceQuality "1"]
[TimeControl "5400+30"]

1. e4 {[%emt 0:01:00]} e5 {[%emt 0:04:00]} 2. Nf3 {[%emt 0:00:00]} Nc6 {[%emt 0:01:30]} 3. Bb5 {[%emt 0:00:00]} a6 {[%emt 0:00:30]} 4. Ba4 {[%emt 0:00:30]} Nf6 {[%emt 0:00:30]} 5. O-O {[%emt 0:00:30]} Be7 {[%emt 0:00:00]} 6. Re1 {[%emt 0:00:00]} b5 {[%emt 0:00:00]} 7. Bb3 {[%emt 0:00:00]} O-O {[%emt 0:00:30]} 8. c3 {[%emt 0:00:00]} d5 {[%emt 0:00:30]} 9. exd5 {[%emt 0:00:00]} Nxd5 {[%emt 0:00:30]} 10. Nxe5 {[%emt 0:00:00]} Nxe5 {[%emt 0:00:30]} 11. Rxe5 {[%emt 0:00:00]} c6 {[%emt 0:00:30]} 12. d4 {[%emt 0:00:30]} Bd6 {[%emt 0:00:30]} 13. Re1 {[%emt 0:00:30]} Qh4 {[%emt 0:00:30]} 14. g3 {[%emt 0:00:30]} Qh3 {[%emt 0:00:30]} 15. Qd3 {[%emt 0:00:30]} Bf5 {[%emt 0:00:30]} 16. Qf1 {[%emt 0:05:30]} Qh5 {[%emt 0:06:30]} 17. Be3 {[%emt 0:01:30]} Bh3 {[%emt 0:03:30]} 18. Bd1 {[%emt 0:11:30]} Qf5 {[%emt 0:00:30]} 19. Qe2 {[%emt 0:00:30]} Rae8 {[%emt 0:01:30]} 20. Nd2 {[%emt 0:02:30]} c5 {[%emt 0:03:30]} 21. a3 {[%emt 0:10:30]} cxd4 {[%emt 0:23:30]} 22. cxd4 {[%emt 0:00:30]} Bf4 {[%emt 0:11:30]} 23. Nf1 {[%emt 0:05:30]} Bxf1 {[%emt 0:01:30]} 24. Qxf1 {[%emt 0:08:30]} Nxe3 {[%emt 0:02:30]} 25. fxe3 {[%emt 0:00:30]} Bxe3+ {[%emt 0:00:00]} 26. Kg2 {[%emt 0:00:30]} Qxf1+ {[%emt 0:03:00]} 27. Kxf1 {[%emt 0:02:30]} Bxd4 {[%emt 0:00:30]} 28. Rxe8 {[%emt 0:00:30]} Rxe8 {[%emt 0:00:00]} 29. Ra2 {[%emt 0:05:30]} g6 {[%emt 0:02:00]} 30. b3 {[%emt 0:04:30]} Re6 {[%emt 0:03:30]} 31. Re2 {[%emt 0:03:30]} Rc6 {[%emt 0:04:30]} 32. Rc2 {[%emt 0:00:30]} Rd6 {[%emt 0:01:30]} 33. Rd2 {[%emt 0:01:30]} Kg7 {[%emt 0:00:30]} 34. Kg2 {[%emt 0:00:30]} f5 {[%emt 0:03:30]} 35. Bf3 {[%emt 0:02:30]} Kf6 {[%emt 0:00:30]} 36. Bb7 {[%emt 0:05:30]} a5 {[%emt 0:00:30]} 37. Rc2 {[%emt 0:02:30]} h6 {[%emt 0:03:53]} 38. Rc6 {[%emt 0:00:30]} Rxc6 {[%emt 0:00:30]} 39. Bxc6 {[%emt 0:00:30]} b4 {[%emt 0:00:30]} 40. axb4 {[%emt 0:00:30]} axb4 {[%emt 0:00:30]} 41. Kf3 {[%emt 0:00:30]} g5 {[%emt 0:00:30]} 42. g4 {[%emt 0:00:30]} h5 {[%emt 0:00:30]} 43. gxf5 {[%emt 0:00:30]} Be5 {[%emt 0:00:30]} 44. h3 {[%emt 0:00:30]} Kxf5 {[%emt 0:00:30]} 45. Bd7+ {[%emt 0:00:30]} Kg6 {[%emt 0:00:23]} 46. Be8+ {[%emt 0:00:30]} Kh6 {[%emt 0:00:31]} 47. Bf7 {[%emt 0:00:00]} Bb8 {[%emt 0:00:24]} 48. Be8 {[%emt 0:00:00]} g4+ {[%emt 0:00:28]} 49. hxg4 {[%emt 0:00:30]} h4 {[%emt 0:00:30]} 50. Kg2 {[%emt 0:00:00]} Kg5 {[%emt 0:00:21]} 51. Kh3 {[%emt 0:00:00]} Bd6 {[%emt 0:00:30]} 52. Bf7 {[%emt 0:00:00]} 1/2-1/2

[Event "Turkish-ch Youth U18 Boys 2024"]
[Site "Belek Antalya"]
[Date "2024.01.22"]
[Round "3"]
[White "Acar, Erdogan"]
[Black "Temizer, Umut"]
[Result "1/2-1/2"]
[ECO "D00"]
[WhiteElo "1594"]
[BlackElo "2071"]
[Annotator "TA"]
[PlyCount "46"]
[EventDate "2024.01.21"]
[EventType "swiss"]
[EventCountry "TUR"]
[SourceTitle "playchess.com"]
[Source "ChessBase"]
[SourceQuality "1"]
[TimeControl "5400+30"]

{[%evp 9,46,7,45,26,33,27,36,31,33,35,25,14,27,27,24,25,35,20,41,21,52,40,43,0,48,42,58,31,32,26,123,124,136,137,136,150,222,131,136]} 1. d4 {[%emt 0:01:00]} d5 {[%emt 0:04:00]} 2. e3 {[%emt 0:00:30]} g6 3. Nf3 {[%emt 0:00:30]} Bg7 {[%emt 0:01:00]} 4. Be2 {[%emt 0:01:30]} Nf6 5. O-O {[%emt 0:00:00]} Bg4 {[%emt 0:02:00]} 6. b4 {[%emt 0:02:00]} O-O {[%emt 0:00:30]} 7. Nbd2 {[%emt 0:04:30]} Nbd7 {[%emt 0:01:30]} 8. Bb2 {[%emt 0:03:30] White is slightly better.} Ne4 {[%emt 0:02:30]} 9. Nxe4 {[%emt 0:08:30]} dxe4 {[%emt 0:00:30]} 10. Nd2 {[%emt 0:00:30][%csl LRe4,LRg4][%cal Bf3d2,Bd2b3,Bb3c5][%mdl 32]} Bxe2 {[%emt 0:00:30]} 11. Qxe2 {[%emt 0:04:30]} f5 {[%emt 0:00:30]} 12. Rfd1 {[%emt 0:07:30]} c6 {[%emt 0:01:30]} 13. a4 {[%emt 0:05:30]} Qc7 {[%emt 0:01:30]} 14. c4 {[%emt 0:04:30]} h6 {[%emt 0:03:30]} 15. Nb3 {[%emt 0:05:30]} e6 {[%emt 0:03:30]} 16. Nc5 {[%emt 0:10:30]} Rae8 {[%emt 0:00:30]} (16... Nxc5 $11 17. bxc5 (17. dxc5 Rfd8 $11) 17... Rad8) 17. a5 {[%emt 0:00:30]} Nf6 {[%emt 0:01:30]} 18. Rd2 {[%emt 0:02:30]} Ng4 {[%emt 0:00:30]} 19. g3 {[%emt 0:00:30][%cal Oc5e4]} g5 {[%emt 0:06:30] [#]} (19... h5 $11) 20. Nxe4 $1 $16 {[%emt 0:08:30][%mdl 512]} Nxh2 {[%emt 0:13:30]} 21. Kxh2 {[%emt 0:08:43] White is clearly better.} fxe4 {[%emt 0:05:30]} 22. Qg4 {[%emt 0:00:17]} Rf6 {[%emt 0:01:30] [#]} (22... Qe7 $16 {was worth a try.} 23. Ba3 (23. Qxe4 Qxb4 24. Rc2 a6 $14) 23... Rf5 24. Qxe4 Qf7) 23. Qxe4 {[%emt 0:07:00]} (23. d5 $1 $18 Rff8 24. d6 (24. Qxe4 exd5 25. Qd3 Bxb2 $14) (24. dxe6 Bxb2 25. Rxb2 Qg7 $16)) 23... Ref8 {[%emt 0:00:00] Weighted Error Value: White=0.13 (very precise) /Black=0.26 (precise) .  Mistake:       	White=1     	Black=3      Inaccurate:     	White=2     	Black=1      OK:         	White=10    	Black=6} 1/2-1/2

[Event "Turkish-ch Youth U18 Boys 2024"]
[Site "Belek Antalya"]
[Date "2024.01.23"]
[Round "4"]
[White "Ozen, Metehan"]
[Black "Engin, Onur Cinar"]
[Result "0-1"]
[ECO "C02"]
[WhiteElo "2252"]
[BlackElo "2061"]
[Annotator "RC"]
[PlyCount "78"]
[EventDate "2024.01.21"]
[EventType "swiss"]
[EventCountry "TUR"]
[SourceTitle "playchess.com"]
[Source "ChessBase"]
[SourceQuality "1"]
[TimeControl "5400+30"]

1. e4 {[%emt 0:01:00]} e6 {[%emt 0:01:00]} 2. d4 {[%emt 0:01:30]} d5 {[%emt 0:00:30]} 3. e5 {[%emt 0:00:30]} c5 {[%emt 0:00:30]} 4. c3 {[%emt 0:00:30]} Nc6 {[%emt 0:02:30]} 5. Nf3 {[%emt 0:00:30]} Qb6 {[%emt 0:00:30]} 6. a3 {[%emt 0:00:30]} Bd7 {[%emt 0:01:30]} 7. b4 {[%emt 0:09:30]} cxd4 {[%emt 0:00:30]} 8. cxd4 {[%emt 0:00:30]} Rc8 {[%emt 0:00:30]} 9. Be2 {[%emt 0:05:30]} a5 {[%emt 0:01:30]} 10. b5 {[%emt 0:03:30]} Nxd4 {[%emt 0:00:30]} 11. Nxd4 {[%emt 0:03:30]} Rxc1 {[%emt 0:00:30]} 12. Qxc1 {[%emt 0:00:30]} Qxd4 {[%emt 0:00:00]} 13. Qc7 {[%emt 0:16:30]} Bc5 {[%emt 0:11:00]} 14. Qb8+ {[%emt 0:02:30]} Ke7 {[%emt 0:02:30]} 15. Ra2 {[%emt 0:01:30]} Qxf2+ {[%emt 0:01:30]} 16. Kd1 {[%emt 0:00:00]} f6 {[%emt 0:09:30]} 17. Nd2 {[%emt 0:05:00]} Qd4 {[%emt 0:05:30]} 18. exf6+ {[%emt 0:16:30]} gxf6 {[%emt 0:00:30]} 19. Rf1 {[%emt 0:02:30]} Bd6 {[%emt 0:07:30]} 20. Qxb7 {[%emt 0:05:30]} Nh6 {[%emt 0:01:30]} 21. b6 {[%emt 0:01:30]} Rb8 {[%emt 0:01:30]} 22. Qa6 {[%emt 0:00:30]} Ng4 {[%emt 0:18:30]} 23. Bxg4 {[%emt 0:02:30]} Qxg4+ {[%emt 0:00:30]} 24. Nf3 {[%emt 0:00:57]} Qa4+ {[%emt 0:07:30]} 25. Rc2 {[%emt 0:01:26]} Qxa3 {[%emt 0:03:30]} 26. Re1 {[%emt 0:02:06]} Qa1+ {[%emt 0:10:18]} 27. Ke2 {[%emt 0:01:09]} Qa4 {[%emt 0:00:30]} 28. Kd1 {[%emt 0:00:00]} Rc8 {[%emt 0:05:11]} 29. Qd3 {[%emt 0:03:40]} Qa1+ {[%emt 0:02:33]} 30. Ke2 {[%emt 0:00:30]} Bb5 {[%emt 0:00:30]} 31. Qxb5 {[%emt 0:02:21]} Rxc2+ {[%emt 0:00:30]} 32. Kf1 {[%emt 0:00:30]} Qb2 {[%emt 0:01:12]} 33. Rxe6+ {[%emt 0:01:47]} Kxe6 {[%emt 0:00:30]} 34. Qe8+ {[%emt 0:01:11]} Be7 {[%emt 0:00:35]} 35. Qg8+ {[%emt 0:00:30]} Kd6 {[%emt 0:00:30]} 36. Qb8+ {[%emt 0:00:30]} Kd7 {[%emt 0:00:30]} 37. Qa7+ {[%emt 0:01:59]} Ke8 {[%emt 0:02:56]} 38. b7 {[%emt 0:00:17]} Rc1+ {[%emt 0:00:26]} 39. Ne1 {[%emt 0:00:30]} Qb5+ {[%emt 0:00:00]} 0-1

[Event "Turkish-ch Youth U18 Boys 2024"]
[Site "Belek Antalya"]
[Date "2024.01.23"]
[Round "4"]
[White "Temizer, Umut"]
[Black "Giray, Arda"]
[Result "1-0"]
[ECO "C68"]
[WhiteElo "2071"]
[BlackElo "1323"]
[Annotator "RC"]
[PlyCount "61"]
[EventDate "2024.01.21"]
[EventType "swiss"]
[EventCountry "TUR"]
[SourceTitle "playchess.com"]
[Source "ChessBase"]
[SourceQuality "1"]
[TimeControl "5400+30"]

1. e4 {[%emt 0:03:00]} e5 {[%emt 0:01:00]} 2. Nf3 {[%emt 0:00:30]} Nc6 {[%emt 0:00:00]} 3. Bb5 {[%emt 0:00:30]} a6 {[%emt 0:00:00]} 4. Bxc6 {[%emt 0:02:30]} dxc6 {[%emt 0:00:30]} 5. Nc3 {[%emt 0:00:00]} Bd6 {[%emt 0:07:30]} 6. d4 {[%emt 0:00:00]} Qe7 {[%emt 0:03:30]} 7. dxe5 {[%emt 0:06:30]} Bxe5 {[%emt 0:00:30]} 8. Nxe5 {[%emt 0:02:30]} Qxe5 {[%emt 0:02:30]} 9. Qf3 {[%emt 0:01:30]} g5 {[%emt 0:13:30]} 10. h4 {[%emt 0:14:30]} h6 {[%emt 0:28:30]} 11. Be3 {[%emt 0:01:30]} Be6 {[%emt 0:06:30]} 12. O-O-O {[%emt 0:00:30]} g4 {[%emt 0:11:30]} 13. Qe2 {[%emt 0:00:30]} Ne7 {[%emt 0:02:46]} 14. Qd2 {[%emt 0:03:30]} Rg8 {[%emt 0:06:46]} 15. Bxh6 {[%emt 0:05:30]} f6 {[%emt 0:01:35]} 16. Bf4 {[%emt 0:03:30]} Qa5 {[%emt 0:03:48]} 17. b3 {[%emt 0:07:30]} Kf7 {[%emt 0:00:55]} 18. Kb2 {[%emt 0:00:30]} b5 {[%emt 0:00:53]} 19. Qd4 {[%emt 0:05:30]} Rad8 {[%emt 0:04:11]} 20. Qc5 {[%emt 0:01:30]} Ng6 {[%emt 0:00:00]} 21. Bg3 {[%emt 0:03:30]} Qb6 {[%emt 0:00:15]} 22. Qxb6 {[%emt 0:01:30]} cxb6 {[%emt 0:00:30]} 23. Rxd8 {[%emt 0:00:30]} Rxd8 {[%emt 0:00:00]} 24. Bc7 {[%emt 0:00:30]} Rd2 {[%emt 0:00:16]} 25. Bxb6 {[%emt 0:00:30]} Ne5 {[%emt 0:00:28]} 26. Kc1 {[%emt 0:01:30]} Rd7 {[%emt 0:01:08]} 27. Rd1 {[%emt 0:01:30]} Kg6 {[%emt 0:00:52]} 28. Ne2 {[%emt 0:00:30]} Rh7 {[%emt 0:00:46]} 29. Rd6 {[%emt 0:01:30]} Kf7 {[%emt 0:01:25]} 30. g3 {[%emt 0:02:30]} Nd7 {[%emt 0:01:31]} 31. Rxc6 {[%emt 0:00:30]} 1-0